Workbook

Sheet Overview
A4: SPECapc 3DSMax 2011 Benchmark Results
A6: Graphics: | B6: =Results1!H2 -> 
A7: Resolution: | B7: =Results1!H3 -> 
A8: Date: | B8: =Results1!H4 -> 
A10: SubTest | C10: Score
I11: CPU Composite Score
A12: Large Model CPU | C12: ='Computed Results'!W26 -> 0
I13: =GEOMEAN(C20,C22) -> 
A14: LargeModel GPU | C14: ='Computed Results'!W27 -> 0
A16: Interactive Graphics | C16: ='Computed Results'!W22 ->  | I16: GPU Composite Score
A18: Modeling | C18: ='Computed Results'!W42 ->  | I18: =GEOMEAN(C16,C18,C24,C26) -> 
A20: CPU Computing | C20: ='Computed Results'!W45 -> 
I21: Large Model Composite
A22: CPU Rendering | C22: ='Computed Results'!W60 -> 
I23: =GEOMEAN(C12,C14) -> 
A24: GPU Rendering | C24: ='Computed Results'!W54 -> 
A26: GPU Shaders | C26: ='Computed Results'!W25 -> 

Sheet Results1
A1: ID | B1: Name | C1: TestType | D1: Time | E1: Weighting
A2: Test0541 | B2: Architecture Wireframe | C2: Interactive Graphics | D2: 0 | E2: 1 | G2: Graphics
A3: Test0220 | B3: Sphere Array - Wireframe | C3: Interactive Graphics | D3: 0 | E3: 1 | G3: Resolution
A4: Test0320 | B4: Xray Objects - Sphere Array | C4: Interactive Graphics | D4: 0 | E4: 1 | G4: Date
A5: Test0410 | B5: Brutal Flower - Multiple Object Stress | C5: Interactive Graphics | D5: 0 | E5: 1
A6: Test0040 | B6: Building Flyby | C6: Interactive Graphics | D6: 0 | E6: 1
A7: Test2040 | B7: FishFlock Smooth | C7: Interactive Graphics | D7: 0 | E7: 1
A8: Test0400 | B8: Max Hardware Light Test | C8: Interactive Graphics | D8: 0 | E8: 1
A9: Test0622 | B9: HugeFish Smooth | C9: Interactive Graphics | D9: 0 | E9: 1
A10: Test0625 | B10: HugeFish Rotate | C10: Interactive Graphics | D10: 0 | E10: 1
A11: Test0340 | B11: IK Group | C11: Interactive Graphics | D11: 0 | E11: 1
A12: Test0323 | B12: Opacity Performance - Blended | C12: Interactive Graphics | D12: 0 | E12: 1
A13: Test0390 | B13: Particle Tests | C13: Interactive Graphics | D13: 0 | E13: 1
A14: Test0531 | B14: UnderWater Animation | C14: Interactive Graphics | D14: 0 | E14: 1
A15: Test0140 | B15: Moving Blended Lights | C15: Interactive Graphics | D15: 0 | E15: 1
A16: Test0600 | B16: SpaceFlyby Wireframe | C16: Interactive Graphics | D16: 0 | E16: 1
A17: Test0601 | B17: SpaceFlyby Smooth with Edges | C17: Interactive Graphics | D17: 0 | E17: 1
A18: Test0602 | B18: SpaceFlyby Smooth | C18: Interactive Graphics | D18: 0 | E18: 1
A19: Test1510 | B19: SpiderWalk - Playback | C19: Interactive Graphics | D19: 0 | E19: 1
A20: Test0561 | B20: Train Wireframe | C20: Interactive Graphics | D20: 0 | E20: 1
A21: Test0562 | B21: Train Smooth with Edges | C21: Interactive Graphics | D21: 0 | E21: 1
A22: Test2050 | B22: Brutal Flower - DX Shaders | C22: GPU Shaders | D22: 0 | E22: 1
A23: Test2010 | B23: MeshSmooth-Polygon Spaceship | C23: GPU Shaders | D23: 0 | E23: 1
A24: Test2020 | B24: Effects Gallery | C24: GPU Shaders | D24: 0 | E24: 1
A25: Test0020 | B25: Building City | C25: Large Model CPU | D25: 0 | E25: 1
A26: Test0030 | B26: Moving City | C26: Large Model GPU | D26: 0 | E26: 1
A27: Test2000 | B27: Rotate Polygon Spaceship | C27: Modeling | D27: 0 | E27: 1
A28: Test0050 | B28: Changing Color Test | C28: Modeling | D28: 0 | E28: 1
A29: Test0070 | B29: SubObject Vertices | C29: Modeling | D29: 0 | E29: 1
A30: Test0080 | B30: SubObject Edges | C30: Modeling | D30: 0 | E30: 1
A31: Test0090 | B31: SubObject Faces | C31: Modeling | D31: 0 | E31: 1
A32: Test0100 | B32: Extrude Faces | C32: Modeling | D32: 0 | E32: 1
A33: Test0110 | B33: Bevel Faces | C33: Modeling | D33: 0 | E33: 1
A34: Test0041 | B34: Gizmo Transforms - Move | C34: Modeling | D34: 0 | E34: 1
A35: Test0042 | B35: Gizmo Transforms - Rotate | C35: Modeling | D35: 0 | E35: 1
A36: Test0043 | B36: Gizmo Transforms - Scale | C36: Modeling | D36: 0 | E36: 1
A37: Test0370 | B37: Create Tank Scene | C37: Modeling | D37: 0 | E37: 1
A38: Test0171 | B38: Modify Objects - Short | C38: Modeling | D38: 0 | E38: 1
A39: Test0210 | B39: Softbody Objects - Flag | C39: Modeling | D39: 0 | E39: 1
A40: Test0121 | B40: Vertex Soft-Selection | C40: Modeling | D40: 0 | E40: 1
A41: Test0130 | B41: Multi-SubObject Texturing | C41: Modeling | D41: 0 | E41: 1
A42: Test0125 | B42: Create Textures | C42: CPU Computing | D42: 0 | E42: 1
A43: Test1000 | B43: Radiosity | C43: CPU Computing | D43: 0 | E43: 1
A44: Test1500 | B44: SpiderWalk - Create Walk Cycle | C44: CPU Computing | D44: 0 | E44: 1
A45: Test1070 | B45: Quicksilver-Green Apples Basic | C45: GPU Rendering | D45: 0 | E45: 1
A46: Test1075 | B46: Quicksilver-Green Apples Advanced | C46: GPU Rendering | D46: 0 | E46: 1
A47: Test1080 | B47: Quicksilver - Train Engine Sequence | C47: GPU Rendering | D47: 0 | E47: 1
A48: Test1081 | B48: Quicksilver - Train Engine | C48: GPU Rendering | D48: 0 | E48: 1
A49: Test1090 | B49: Quicksilver - Army Camp | C49: GPU Rendering | D49: 0 | E49: 1
A50: Test1100 | B50: Quicksilver - Chess Baisc | C50: GPU Rendering | D50: 0 | E50: 1
A51: Test1105 | B51: Quicksilver - Chess Advanced | C51: GPU Rendering | D51: 0 | E51: 1
A52: Test1110 | B52: Quicksilver - Chess Short | C52: GPU Rendering | D52: 0 | E52: 1
A53: Test1120 | B53: Quicksilver - Chess DOF | C53: GPU Rendering | D53: 0 | E53: 1
A54: Test1520 | B54: SpiderWalk - Quicksilver Render | C54: GPU Rendering | D54: 0 | E54: 1
A55: Test1085 | B55: Mental Ray - Train Engine | C55: CPU Rendering | D55: 0 | E55: 1
A56: Test1095 | B56: Mental Ray - Army Camp | C56: CPU Rendering | D56: 0 | E56: 1
A57: Test1115 | B57: Mental Ray - Chess Short | C57: CPU Rendering | D57: 0 | E57: 1
A58: Test1040 | B58: UnderWater | C58: CPU Rendering | D58: 0 | E58: 1
A59: Test1060 | B59: UnderwaterEscape | C59: CPU Rendering | D59: 0 | E59: 1

Sheet Results2
A1: ID | B1: Name | C1: TestType | D1: Time | E1: Weighting
A2: Test0541 | B2: Architecture Wireframe | C2: Interactive Graphics | D2: 0 | E2: 1 | G2: Graphics
A3: Test0220 | B3: Sphere Array - Wireframe | C3: Interactive Graphics | D3: 0 | E3: 1 | G3: Resolution
A4: Test0320 | B4: Xray Objects - Sphere Array | C4: Interactive Graphics | D4: 0 | E4: 1 | G4: Date
A5: Test0410 | B5: Brutal Flower - Multiple Object Stress | C5: Interactive Graphics | D5: 0 | E5: 1
A6: Test0040 | B6: Building Flyby | C6: Interactive Graphics | D6: 0 | E6: 1
A7: Test2040 | B7: FishFlock Smooth | C7: Interactive Graphics | D7: 0 | E7: 1
A8: Test0400 | B8: Max Hardware Light Test | C8: Interactive Graphics | D8: 0 | E8: 1
A9: Test0622 | B9: HugeFish Smooth | C9: Interactive Graphics | D9: 0 | E9: 1
A10: Test0625 | B10: HugeFish Rotate | C10: Interactive Graphics | D10: 0 | E10: 1
A11: Test0340 | B11: IK Group | C11: Interactive Graphics | D11: 0 | E11: 1
A12: Test0323 | B12: Opacity Performance - Blended | C12: Interactive Graphics | D12: 0 | E12: 1
A13: Test0390 | B13: Particle Tests | C13: Interactive Graphics | D13: 0 | E13: 1
A14: Test0531 | B14: UnderWater Animation | C14: Interactive Graphics | D14: 0 | E14: 1
A15: Test0140 | B15: Moving Blended Lights | C15: Interactive Graphics | D15: 0 | E15: 1
A16: Test0600 | B16: SpaceFlyby Wireframe | C16: Interactive Graphics | D16: 0 | E16: 1
A17: Test0601 | B17: SpaceFlyby Smooth with Edges | C17: Interactive Graphics | D17: 0 | E17: 1
A18: Test0602 | B18: SpaceFlyby Smooth | C18: Interactive Graphics | D18: 0 | E18: 1
A19: Test1510 | B19: SpiderWalk - Playback | C19: Interactive Graphics | D19: 0 | E19: 1
A20: Test0561 | B20: Train Wireframe | C20: Interactive Graphics | D20: 0 | E20: 1
A21: Test0562 | B21: Train Smooth with Edges | C21: Interactive Graphics | D21: 0 | E21: 1
A22: Test2050 | B22: Brutal Flower - DX Shaders | C22: GPU Shaders | D22: 0 | E22: 1
A23: Test2010 | B23: MeshSmooth-Polygon Spaceship | C23: GPU Shaders | D23: 0 | E23: 1
A24: Test2020 | B24: Effects Gallery | C24: GPU Shaders | D24: 0 | E24: 1
A25: Test0020 | B25: Building City | C25: Large Model CPU | D25: 0 | E25: 1
A26: Test0030 | B26: Moving City | C26: Large Model GPU | D26: 0 | E26: 1
A27: Test2000 | B27: Rotate Polygon Spaceship | C27: Modeling | D27: 0 | E27: 1
A28: Test0050 | B28: Changing Color Test | C28: Modeling | D28: 0 | E28: 1
A29: Test0070 | B29: SubObject Vertices | C29: Modeling | D29: 0 | E29: 1
A30: Test0080 | B30: SubObject Edges | C30: Modeling | D30: 0 | E30: 1
A31: Test0090 | B31: SubObject Faces | C31: Modeling | D31: 0 | E31: 1
A32: Test0100 | B32: Extrude Faces | C32: Modeling | D32: 0 | E32: 1
A33: Test0110 | B33: Bevel Faces | C33: Modeling | D33: 0 | E33: 1
A34: Test0041 | B34: Gizmo Transforms - Move | C34: Modeling | D34: 0 | E34: 1
A35: Test0042 | B35: Gizmo Transforms - Rotate | C35: Modeling | D35: 0 | E35: 1
A36: Test0043 | B36: Gizmo Transforms - Scale | C36: Modeling | D36: 0 | E36: 1
A37: Test0370 | B37: Create Tank Scene | C37: Modeling | D37: 0 | E37: 1
A38: Test0171 | B38: Modify Objects - Short | C38: Modeling | D38: 0 | E38: 1
A39: Test0210 | B39: Softbody Objects - Flag | C39: Modeling | D39: 0 | E39: 1
A40: Test0121 | B40: Vertex Soft-Selection | C40: Modeling | D40: 0 | E40: 1
A41: Test0130 | B41: Multi-SubObject Texturing | C41: Modeling | D41: 0 | E41: 1
A42: Test0125 | B42: Create Textures | C42: CPU Computing | D42: 0 | E42: 1
A43: Test1000 | B43: Radiosity | C43: CPU Computing | D43: 0 | E43: 1
A44: Test1500 | B44: SpiderWalk - Create Walk Cycle | C44: CPU Computing | D44: 0 | E44: 1
A45: Test1070 | B45: Quicksilver-Green Apples Basic | C45: GPU Rendering | D45: 0 | E45: 1
A46: Test1075 | B46: Quicksilver-Green Apples Advanced | C46: GPU Rendering | D46: 0 | E46: 1
A47: Test1080 | B47: Quicksilver - Train Engine Sequence | C47: GPU Rendering | D47: 0 | E47: 1
A48: Test1081 | B48: Quicksilver - Train Engine | C48: GPU Rendering | D48: 0 | E48: 1
A49: Test1090 | B49: Quicksilver - Army Camp | C49: GPU Rendering | D49: 0 | E49: 1
A50: Test1100 | B50: Quicksilver - Chess Baisc | C50: GPU Rendering | D50: 0 | E50: 1
A51: Test1105 | B51: Quicksilver - Chess Advanced | C51: GPU Rendering | D51: 0 | E51: 1
A52: Test1110 | B52: Quicksilver - Chess Short | C52: GPU Rendering | D52: 0 | E52: 1
A53: Test1120 | B53: Quicksilver - Chess DOF | C53: GPU Rendering | D53: 0 | E53: 1
A54: Test1520 | B54: SpiderWalk - Quicksilver Render | C54: GPU Rendering | D54: 0 | E54: 1
A55: Test1085 | B55: Mental Ray - Train Engine | C55: CPU Rendering | D55: 0 | E55: 1
A56: Test1095 | B56: Mental Ray - Army Camp | C56: CPU Rendering | D56: 0 | E56: 1
A57: Test1115 | B57: Mental Ray - Chess Short | C57: CPU Rendering | D57: 0 | E57: 1
A58: Test1040 | B58: UnderWater | C58: CPU Rendering | D58: 0 | E58: 1
A59: Test1060 | B59: UnderwaterEscape | C59: CPU Rendering | D59: 0 | E59: 1

Sheet Results3
A1: ID | B1: Name | C1: TestType | D1: Time | E1: Weighting
A2: Test0541 | B2: Architecture Wireframe | C2: Interactive Graphics | D2: 0 | E2: 1 | G2: Graphics
A3: Test0220 | B3: Sphere Array - Wireframe | C3: Interactive Graphics | D3: 0 | E3: 1 | G3: Resolution
A4: Test0320 | B4: Xray Objects - Sphere Array | C4: Interactive Graphics | D4: 0 | E4: 1 | G4: Date
A5: Test0410 | B5: Brutal Flower - Multiple Object Stress | C5: Interactive Graphics | D5: 0 | E5: 1
A6: Test0040 | B6: Building Flyby | C6: Interactive Graphics | D6: 0 | E6: 1
A7: Test2040 | B7: FishFlock Smooth | C7: Interactive Graphics | D7: 0 | E7: 1
A8: Test0400 | B8: Max Hardware Light Test | C8: Interactive Graphics | D8: 0 | E8: 1
A9: Test0622 | B9: HugeFish Smooth | C9: Interactive Graphics | D9: 0 | E9: 1
A10: Test0625 | B10: HugeFish Rotate | C10: Interactive Graphics | D10: 0 | E10: 1
A11: Test0340 | B11: IK Group | C11: Interactive Graphics | D11: 0 | E11: 1
A12: Test0323 | B12: Opacity Performance - Blended | C12: Interactive Graphics | D12: 0 | E12: 1
A13: Test0390 | B13: Particle Tests | C13: Interactive Graphics | D13: 0 | E13: 1
A14: Test0531 | B14: UnderWater Animation | C14: Interactive Graphics | D14: 0 | E14: 1
A15: Test0140 | B15: Moving Blended Lights | C15: Interactive Graphics | D15: 0 | E15: 1
A16: Test0600 | B16: SpaceFlyby Wireframe | C16: Interactive Graphics | D16: 0 | E16: 1
A17: Test0601 | B17: SpaceFlyby Smooth with Edges | C17: Interactive Graphics | D17: 0 | E17: 1
A18: Test0602 | B18: SpaceFlyby Smooth | C18: Interactive Graphics | D18: 0 | E18: 1
A19: Test1510 | B19: SpiderWalk - Playback | C19: Interactive Graphics | D19: 0 | E19: 1
A20: Test0561 | B20: Train Wireframe | C20: Interactive Graphics | D20: 0 | E20: 1
A21: Test0562 | B21: Train Smooth with Edges | C21: Interactive Graphics | D21: 0 | E21: 1
A22: Test2050 | B22: Brutal Flower - DX Shaders | C22: GPU Shaders | D22: 0 | E22: 1
A23: Test2010 | B23: MeshSmooth-Polygon Spaceship | C23: GPU Shaders | D23: 0 | E23: 1
A24: Test2020 | B24: Effects Gallery | C24: GPU Shaders | D24: 0 | E24: 1
A25: Test0020 | B25: Building City | C25: Large Model CPU | D25: 0 | E25: 1
A26: Test0030 | B26: Moving City | C26: Large Model GPU | D26: 0 | E26: 1
A27: Test2000 | B27: Rotate Polygon Spaceship | C27: Modeling | D27: 0 | E27: 1
A28: Test0050 | B28: Changing Color Test | C28: Modeling | D28: 0 | E28: 1
A29: Test0070 | B29: SubObject Vertices | C29: Modeling | D29: 0 | E29: 1
A30: Test0080 | B30: SubObject Edges | C30: Modeling | D30: 0 | E30: 1
A31: Test0090 | B31: SubObject Faces | C31: Modeling | D31: 0 | E31: 1
A32: Test0100 | B32: Extrude Faces | C32: Modeling | D32: 0 | E32: 1
A33: Test0110 | B33: Bevel Faces | C33: Modeling | D33: 0 | E33: 1
A34: Test0041 | B34: Gizmo Transforms - Move | C34: Modeling | D34: 0 | E34: 1
A35: Test0042 | B35: Gizmo Transforms - Rotate | C35: Modeling | D35: 0 | E35: 1
A36: Test0043 | B36: Gizmo Transforms - Scale | C36: Modeling | D36: 0 | E36: 1
A37: Test0370 | B37: Create Tank Scene | C37: Modeling | D37: 0 | E37: 1
A38: Test0171 | B38: Modify Objects - Short | C38: Modeling | D38: 0 | E38: 1
A39: Test0210 | B39: Softbody Objects - Flag | C39: Modeling | D39: 0 | E39: 1
A40: Test0121 | B40: Vertex Soft-Selection | C40: Modeling | D40: 0 | E40: 1
A41: Test0130 | B41: Multi-SubObject Texturing | C41: Modeling | D41: 0 | E41: 1
A42: Test0125 | B42: Create Textures | C42: CPU Computing | D42: 0 | E42: 1
A43: Test1000 | B43: Radiosity | C43: CPU Computing | D43: 0 | E43: 1
A44: Test1500 | B44: SpiderWalk - Create Walk Cycle | C44: CPU Computing | D44: 0 | E44: 1
A45: Test1070 | B45: Quicksilver-Green Apples Basic | C45: GPU Rendering | D45: 0 | E45: 1
A46: Test1075 | B46: Quicksilver-Green Apples Advanced | C46: GPU Rendering | D46: 0 | E46: 1
A47: Test1080 | B47: Quicksilver - Train Engine Sequence | C47: GPU Rendering | D47: 0 | E47: 1
A48: Test1081 | B48: Quicksilver - Train Engine | C48: GPU Rendering | D48: 0 | E48: 1
A49: Test1090 | B49: Quicksilver - Army Camp | C49: GPU Rendering | D49: 0 | E49: 1
A50: Test1100 | B50: Quicksilver - Chess Baisc | C50: GPU Rendering | D50: 0 | E50: 1
A51: Test1105 | B51: Quicksilver - Chess Advanced | C51: GPU Rendering | D51: 0 | E51: 1
A52: Test1110 | B52: Quicksilver - Chess Short | C52: GPU Rendering | D52: 0 | E52: 1
A53: Test1120 | B53: Quicksilver - Chess DOF | C53: GPU Rendering | D53: 0 | E53: 1
A54: Test1520 | B54: SpiderWalk - Quicksilver Render | C54: GPU Rendering | D54: 0 | E54: 1
A55: Test1085 | B55: Mental Ray - Train Engine | C55: CPU Rendering | D55: 0 | E55: 1
A56: Test1095 | B56: Mental Ray - Army Camp | C56: CPU Rendering | D56: 0 | E56: 1
A57: Test1115 | B57: Mental Ray - Chess Short | C57: CPU Rendering | D57: 0 | E57: 1
A58: Test1040 | B58: UnderWater | C58: CPU Rendering | D58: 0 | E58: 1
A59: Test1060 | B59: UnderwaterEscape | C59: CPU Rendering | D59: 0 | E59: 1

Sheet Results4
A1: ID | B1: Name | C1: TestType | D1: Time | E1: Weighting
A2: Test0541 | B2: Architecture Wireframe | C2: Interactive Graphics | D2: 0 | E2: 1 | G2: Graphics
A3: Test0220 | B3: Sphere Array - Wireframe | C3: Interactive Graphics | D3: 0 | E3: 1 | G3: Resolution
A4: Test0320 | B4: Xray Objects - Sphere Array | C4: Interactive Graphics | D4: 0 | E4: 1 | G4: Date
A5: Test0410 | B5: Brutal Flower - Multiple Object Stress | C5: Interactive Graphics | D5: 0 | E5: 1
A6: Test0040 | B6: Building Flyby | C6: Interactive Graphics | D6: 0 | E6: 1
A7: Test2040 | B7: FishFlock Smooth | C7: Interactive Graphics | D7: 0 | E7: 1
A8: Test0400 | B8: Max Hardware Light Test | C8: Interactive Graphics | D8: 0 | E8: 1
A9: Test0622 | B9: HugeFish Smooth | C9: Interactive Graphics | D9: 0 | E9: 1
A10: Test0625 | B10: HugeFish Rotate | C10: Interactive Graphics | D10: 0 | E10: 1
A11: Test0340 | B11: IK Group | C11: Interactive Graphics | D11: 0 | E11: 1
A12: Test0323 | B12: Opacity Performance - Blended | C12: Interactive Graphics | D12: 0 | E12: 1
A13: Test0390 | B13: Particle Tests | C13: Interactive Graphics | D13: 0 | E13: 1
A14: Test0531 | B14: UnderWater Animation | C14: Interactive Graphics | D14: 0 | E14: 1
A15: Test0140 | B15: Moving Blended Lights | C15: Interactive Graphics | D15: 0 | E15: 1
A16: Test0600 | B16: SpaceFlyby Wireframe | C16: Interactive Graphics | D16: 0 | E16: 1
A17: Test0601 | B17: SpaceFlyby Smooth with Edges | C17: Interactive Graphics | D17: 0 | E17: 1
A18: Test0602 | B18: SpaceFlyby Smooth | C18: Interactive Graphics | D18: 0 | E18: 1
A19: Test1510 | B19: SpiderWalk - Playback | C19: Interactive Graphics | D19: 0 | E19: 1
A20: Test0561 | B20: Train Wireframe | C20: Interactive Graphics | D20: 0 | E20: 1
A21: Test0562 | B21: Train Smooth with Edges | C21: Interactive Graphics | D21: 0 | E21: 1
A22: Test2050 | B22: Brutal Flower - DX Shaders | C22: GPU Shaders | D22: 0 | E22: 1
A23: Test2010 | B23: MeshSmooth-Polygon Spaceship | C23: GPU Shaders | D23: 0 | E23: 1
A24: Test2020 | B24: Effects Gallery | C24: GPU Shaders | D24: 0 | E24: 1
A25: Test0020 | B25: Building City | C25: Large Model CPU | D25: 0 | E25: 1
A26: Test0030 | B26: Moving City | C26: Large Model GPU | D26: 0 | E26: 1
A27: Test2000 | B27: Rotate Polygon Spaceship | C27: Modeling | D27: 0 | E27: 1
A28: Test0050 | B28: Changing Color Test | C28: Modeling | D28: 0 | E28: 1
A29: Test0070 | B29: SubObject Vertices | C29: Modeling | D29: 0 | E29: 1
A30: Test0080 | B30: SubObject Edges | C30: Modeling | D30: 0 | E30: 1
A31: Test0090 | B31: SubObject Faces | C31: Modeling | D31: 0 | E31: 1
A32: Test0100 | B32: Extrude Faces | C32: Modeling | D32: 0 | E32: 1
A33: Test0110 | B33: Bevel Faces | C33: Modeling | D33: 0 | E33: 1
A34: Test0041 | B34: Gizmo Transforms - Move | C34: Modeling | D34: 0 | E34: 1
A35: Test0042 | B35: Gizmo Transforms - Rotate | C35: Modeling | D35: 0 | E35: 1
A36: Test0043 | B36: Gizmo Transforms - Scale | C36: Modeling | D36: 0 | E36: 1
A37: Test0370 | B37: Create Tank Scene | C37: Modeling | D37: 0 | E37: 1
A38: Test0171 | B38: Modify Objects - Short | C38: Modeling | D38: 0 | E38: 1
A39: Test0210 | B39: Softbody Objects - Flag | C39: Modeling | D39: 0 | E39: 1
A40: Test0121 | B40: Vertex Soft-Selection | C40: Modeling | D40: 0 | E40: 1
A41: Test0130 | B41: Multi-SubObject Texturing | C41: Modeling | D41: 0 | E41: 1
A42: Test0125 | B42: Create Textures | C42: CPU Computing | D42: 0 | E42: 1
A43: Test1000 | B43: Radiosity | C43: CPU Computing | D43: 0 | E43: 1
A44: Test1500 | B44: SpiderWalk - Create Walk Cycle | C44: CPU Computing | D44: 0 | E44: 1
A45: Test1070 | B45: Quicksilver-Green Apples Basic | C45: GPU Rendering | D45: 0 | E45: 1
A46: Test1075 | B46: Quicksilver-Green Apples Advanced | C46: GPU Rendering | D46: 0 | E46: 1
A47: Test1080 | B47: Quicksilver - Train Engine Sequence | C47: GPU Rendering | D47: 0 | E47: 1
A48: Test1081 | B48: Quicksilver - Train Engine | C48: GPU Rendering | D48: 0 | E48: 1
A49: Test1090 | B49: Quicksilver - Army Camp | C49: GPU Rendering | D49: 0 | E49: 1
A50: Test1100 | B50: Quicksilver - Chess Baisc | C50: GPU Rendering | D50: 0 | E50: 1
A51: Test1105 | B51: Quicksilver - Chess Advanced | C51: GPU Rendering | D51: 0 | E51: 1
A52: Test1110 | B52: Quicksilver - Chess Short | C52: GPU Rendering | D52: 0 | E52: 1
A53: Test1120 | B53: Quicksilver - Chess DOF | C53: GPU Rendering | D53: 0 | E53: 1
A54: Test1520 | B54: SpiderWalk - Quicksilver Render | C54: GPU Rendering | D54: 0 | E54: 1
A55: Test1085 | B55: Mental Ray - Train Engine | C55: CPU Rendering | D55: 0 | E55: 1
A56: Test1095 | B56: Mental Ray - Army Camp | C56: CPU Rendering | D56: 0 | E56: 1
A57: Test1115 | B57: Mental Ray - Chess Short | C57: CPU Rendering | D57: 0 | E57: 1
A58: Test1040 | B58: UnderWater | C58: CPU Rendering | D58: 0 | E58: 1
A59: Test1060 | B59: UnderwaterEscape | C59: CPU Rendering | D59: 0 | E59: 1

Sheet Baseline
A1: TestType | B1: ID | C1: Name | D1: Run 1 | E1: Run 2 | F1: Run 3 | G1: Run 4 | H1: Weighting | I1: Median 2,3,4
A2: Interactive Graphics | B2: Test0541 | C2: Architecture Wireframe | D2: 33.294 | E2: 34.217 | F2: 34.496 | G2: 34.458 | H2: 1 | I2: =MEDIAN(E2:G2) -> 34.458
A3: Interactive Graphics | B3: Test0220 | C3: Sphere Array - Wireframe | D3: 47.392 | E3: 48.12 | F3: 48.737 | G3: 49.099 | H3: 1 | I3: =MEDIAN(E3:G3) -> 48.737
A4: Interactive Graphics | B4: Test0320 | C4: Xray Objects - Sphere Array | D4: 46.727 | E4: 50.781 | F4: 51.284 | G4: 51.791 | H4: 1 | I4: 51.284
A5: Interactive Graphics | B5: Test0410 | C5: Brutal Flower - Multiple Object Stress | D5: 17.786 | E5: 18.989 | F5: 18.99 | G5: 18.932 | H5: 1 | I5: 18.989
A6: Interactive Graphics | B6: Test0040 | C6: Building Flyby | D6: 105.572 | E6: 111.427 | F6: 113.375 | G6: 114.344 | H6: 1 | I6: 113.375
A7: Interactive Graphics | B7: Test2040 | C7: FishFlock Smooth | D7: 31.753 | E7: 29.296 | F7: 31.34 | G7: 30.75 | H7: 1 | I7: 30.75
A8: Interactive Graphics | B8: Test0400 | C8: Max Hardware Light Test | D8: 19.069 | E8: 19.003 | F8: 19.863 | G8: 19.759 | H8: 1 | I8: 19.759
A9: Interactive Graphics | B9: Test0622 | C9: HugeFish Smooth | D9: 12.2 | E9: 13.182 | F9: 13.862 | G9: 13.343 | H9: 1 | I9: 13.343
A10: Interactive Graphics | B10: Test0625 | C10: HugeFish Rotate | D10: 7.885 | E10: 8.268 | F10: 7.348 | G10: 7.658 | H10: 1 | I10: 7.658
A11: Interactive Graphics | B11: Test0340 | C11: IK Group | D11: 23.226 | E11: 24.186 | F11: 24.608 | G11: 24.97 | H11: 1 | I11: 24.608
A12: Interactive Graphics | B12: Test0323 | C12: Opacity Performance - Blended | D12: 33.608 | E12: 40.728 | F12: 41.232 | G12: 41.933 | H12: 1 | I12: 41.232
A13: Interactive Graphics | B13: Test0390 | C13: Particle Tests | D13: 107.172 | E13: 115.114 | F13: 115.634 | G13: 116.86 | H13: 1 | I13: 115.634
A14: Interactive Graphics | B14: Test0531 | C14: UnderWater Animation | D14: 11.009 | E14: 11.657 | F14: 11.604 | G14: 11.675 | H14: 1 | I14: 11.657
A15: Interactive Graphics | B15: Test0140 | C15: Moving Blended Lights | D15: 107.647 | E15: 109.832 | F15: 110.474 | G15: 110.626 | H15: 1 | I15: 110.474
A16: Interactive Graphics | B16: Test0600 | C16: SpaceFlyby Wireframe | D16: 26.894 | E16: 27.573 | F16: 23.703 | G16: 23.963 | H16: 1 | I16: 23.963
A17: Interactive Graphics | B17: Test0601 | C17: SpaceFlyby Smooth with Edges | D17: 31.908 | E17: 32.362 | F17: 32.234 | G17: 32.636 | H17: 1 | I17: 32.362
A18: Interactive Graphics | B18: Test0602 | C18: SpaceFlyby Smooth | D18: 15.432 | E18: 15.864 | F18: 16.301 | G18: 16.564 | H18: 1 | I18: 16.301
A19: Interactive Graphics | B19: Test1510 | C19: SpiderWalk - Playback | D19: 92.878 | E19: 92.695 | F19: 94.032 | G19: 95.811 | H19: 1 | I19: 94.032
A20: Interactive Graphics | B20: Test0561 | C20: Train Wireframe | D20: 14.579 | E20: 14.683 | F20: 10.582 | G20: 10.757 | H20: 1 | I20: 10.757
A21: Interactive Graphics | B21: Test0562 | C21: Train Smooth with Edges | D21: 15.249 | E21: 15.825 | F21: 15.295 | G21: 15.41 | H21: 1 | I21: 15.41
A22: GPU Shaders | B22: Test2050 | C22: Brutal Flower - DX Shaders | D22: 114.179 | E22: 202.131 | F22: 116.068 | G22: 119.523 | H22: 1 | I22: 119.523
A23: GPU Shaders | B23: Test2010 | C23: MeshSmooth-Polygon Spaceship | D23: 7.006 | E23: 7.146 | F23: 7.126 | G23: 8.106 | H23: 1 | I23: 7.146
A24: GPU Shaders | B24: Test2020 | C24: Effects Gallery | D24: 60.424 | E24: 61.489 | F24: 62.401 | G24: 62.386 | H24: 1 | I24: 62.386
A25: Large Model CPU | B25: Test0020 | C25: Building City | D25: 271.897 | E25: 294.815 | F25: 309.915 | G25: 315.033 | H25: 1 | I25: 309.915
A26: Large Model GPU | B26: Test0030 | C26: Moving City | D26: 894.536 | E26: 728.194 | F26: 667.213 | G26: 614.084 | H26: 1 | I26: 667.213
A27: Modeling | B27: Test2000 | C27: Rotate Polygon Spaceship | D27: 6.909 | E27: 7.08 | F27: 7.24 | G27: 7.996 | H27: 1 | I27: 7.24
A28: Modeling | B28: Test0050 | C28: Changing Color Test | D28: 12.215 | E28: 12.609 | F28: 12.481 | G28: 12.712 | H28: 1 | I28: 12.609
A29: Modeling | B29: Test0070 | C29: SubObject Vertices | D29: 7.683 | E29: 8.113 | F29: 8.594 | G29: 8.641 | H29: 1 | I29: 8.594
A30: Modeling | B30: Test0080 | C30: SubObject Edges | D30: 14.92 | E30: 15.78 | F30: 16.551 | G30: 16.208 | H30: 1 | I30: 16.208
A31: Modeling | B31: Test0090 | C31: SubObject Faces | D31: 18.446 | E31: 19.497 | F31: 20.532 | G31: 19.937 | H31: 1 | I31: 19.937
A32: Modeling | B32: Test0100 | C32: Extrude Faces | D32: 15.068 | E32: 15.548 | F32: 15.842 | G32: 15.803 | H32: 1 | I32: 15.803
A33: Modeling | B33: Test0110 | C33: Bevel Faces | D33: 8.695 | E33: 9.027 | F33: 9.262 | G33: 9.234 | H33: 1 | I33: 9.234
A34: Modeling | B34: Test0041 | C34: Gizmo Transforms - Move | D34: 34.49 | E34: 34.597 | F34: 36.059 | G34: 35.089 | H34: 1 | I34: 35.089
A35: Modeling | B35: Test0042 | C35: Gizmo Transforms - Rotate | D35: 43.493 | E35: 43.479 | F35: 44.621 | G35: 44.01 | H35: 1 | I35: 44.01
A36: Modeling | B36: Test0043 | C36: Gizmo Transforms - Scale | D36: 45.722 | E36: 46.096 | F36: 47.957 | G36: 46.289 | H36: 1 | I36: 46.289
A37: Modeling | B37: Test0370 | C37: Create Tank Scene | D37: 17.992 | E37: 18.729 | F37: 19.498 | G37: 19.726 | H37: 1 | I37: 19.498
A38: Modeling | B38: Test0171 | C38: Modify Objects - Short | D38: 51.694 | E38: 53.247 | F38: 53.862 | G38: 54.376 | H38: 1 | I38: 53.862
A39: Modeling | B39: Test0210 | C39: Softbody Objects - Flag | D39: 34.437 | E39: 34.753 | F39: 34.93 | G39: 35.838 | H39: 1 | I39: 34.93
A40: Modeling | B40: Test0121 | C40: Vertex Soft-Selection | D40: 12.44 | E40: 15.457 | F40: 16.011 | G40: 17.212 | H40: 1 | I40: 16.011
A41: Modeling | B41: Test0130 | C41: Multi-SubObject Texturing | D41: 26.117 | E41: 26.581 | F41: 26.831 | G41: 28.049 | H41: 1 | I41: 26.831
A42: CPU Computing | B42: Test0125 | C42: Create Textures | D42: 24.689 | E42: 25.244 | F42: 25.727 | G42: 27.849 | H42: 1 | I42: 25.727
A43: CPU Computing | B43: Test1000 | C43: Radiosity | D43: 6.945 | E43: 7.319 | F43: 8.196 | G43: 7.228 | H43: 1 | I43: 7.319
A44: CPU Computing | B44: Test1500 | C44: SpiderWalk - Create Walk Cycle | D44: 11.024 | E44: 11.215 | F44: 11.421 | G44: 11.354 | H44: 1 | I44: 11.354
A45: GPU Rendering | B45: Test1070 | C45: Quicksilver-Green Apples Basic | D45: 4.344 | E45: 4.863 | F45: 4.449 | G45: 4.76 | H45: 1 | I45: 4.76
A46: GPU Rendering | B46: Test1075 | C46: Quicksilver-Green Apples Advanced | D46: 44.993 | E46: 45.108 | F46: 45.395 | G46: 45.328 | H46: 1 | I46: 45.328
A47: GPU Rendering | B47: Test1080 | C47: Quicksilver - Train Engine Sequence | D47: 128.546 | E47: 125.277 | F47: 125.95 | G47: 125.605 | H47: 1 | I47: 125.605
A48: GPU Rendering | B48: Test1081 | C48: Quicksilver - Train Engine | D48: 52.351 | E48: 51.512 | F48: 53.467 | G48: 52.088 | H48: 1 | I48: 52.088
A49: GPU Rendering | B49: Test1090 | C49: Quicksilver - Army Camp | D49: 46.353 | E49: 46.357 | F49: 46.826 | G49: 47.121 | H49: 1 | I49: 46.826
A50: GPU Rendering | B50: Test1100 | C50: Quicksilver - Chess Baisc | D50: 19.179 | E50: 18.621 | F50: 18.424 | G50: 18.478 | H50: 1 | I50: 18.478
A51: GPU Rendering | B51: Test1105 | C51: Quicksilver - Chess Advanced | D51: 156.264 | E51: 157.409 | F51: 156.75 | G51: 156.334 | H51: 1 | I51: 156.75
A52: GPU Rendering | B52: Test1110 | C52: Quicksilver - Chess Short | D52: 29.905 | E52: 29.871 | F52: 29.967 | G52: 29.651 | H52: 1 | I52: 29.871
A53: GPU Rendering | B53: Test1120 | C53: Quicksilver - Chess DOF | D53: 156.849 | E53: 157.803 | F53: 155.712 | G53: 155.463 | H53: 1 | I53: 155.712
A54: GPU Rendering | B54: Test1520 | C54: SpiderWalk - Quicksilver Render | D54: 74.159 | E54: 75.301 | F54: 75.069 | G54: 76.901 | H54: 1 | I54: 75.301
A55: CPU Rendering | B55: Test1085 | C55: Mental Ray - Train Engine | D55: 108.937 | E55: 116.107 | F55: 120.585 | G55: 114.339 | H55: 1 | I55: 116.107
A56: CPU Rendering | B56: Test1095 | C56: Mental Ray - Army Camp | D56: 77.247 | E56: 78.486 | F56: 78.182 | G56: 78.567 | H56: 1 | I56: 78.486
A57: CPU Rendering | B57: Test1115 | C57: Mental Ray - Chess Short | D57: 29.231 | E57: 30.287 | F57: 31.206 | G57: 30.95 | H57: 1 | I57: 30.95
A58: CPU Rendering | B58: Test1040 | C58: UnderWater | D58: 14.393 | E58: 14.79 | F58: 15.193 | G58: 15.211 | H58: 1 | I58: 15.193
A59: CPU Rendering | B59: Test1060 | C59: UnderwaterEscape | D59: 14.118 | E59: 13.855 | F59: 13.894 | G59: 14.008 | H59: 1 | I59: 13.894

Sheet Computed Results
C1: Test Run 1 | G1: Test Run 2 | K1: Test Run 3 | O1: Test Run 4
C2: Score | D2: Wt | E2: Wt Result | G2: Score | H2: Wt | I2: Wt Result | K2: Score | L2: Wt | M2: Wt Result | O2: Score | P2: Wt | Q2: Wt Result | S2: Median | T2: Baseline | U2: Normalized Score
A3: =Results1!C2 -> Interactive Graphics | B3: =Results1!A2 -> Test0541 | C3: =Results1!D2 -> 0 | D3: =Results1!E2 -> 1 | E3: =C3*D3 -> 0 | G3: =Results2!D2 -> 0 | H3: =Results2!E2 -> 1 | I3: =G3*H3 -> 0 | K3: =Results3!D2 -> 0 | L3: =Results3!E2 -> 1 | M3: =K3*L3 -> 0 | O3: =Results4!D2 -> 0 | P3: 1 | Q3: =O3*P3 -> 0 | S3: =MEDIAN(M3,I3,Q3) -> 0 | T3: =Baseline!H2*Baseline!I2 -> 34.458 | U3: =IF($S3=0,0,($T3/$S3)*10) -> 0 | W3: =MEDIAN(Q3,M3,I3,E3) -> 0
A4: =Results1!C3 -> Interactive Graphics | B4: =Results1!A3 -> Test0220 | C4: =Results1!D3 -> 0 | D4: =Results1!E3 -> 1 | E4: =C4*D4 -> 0 | G4: =Results2!D3 -> 0 | H4: =Results2!E3 -> 1 | I4: =G4*H4 -> 0 | K4: =Results3!D3 -> 0 | L4: =Results3!E3 -> 1 | M4: =K4*L4 -> 0 | O4: =Results4!D3 -> 0 | P4: 1 | Q4: =O4*P4 -> 0 | S4: =MEDIAN(M4,I4,Q4) -> 0 | T4: =Baseline!H3*Baseline!I3 -> 48.737 | U4: =IF($S4=0,0,($T4/$S4)*10) -> 0
A5: =Results1!C4 -> Interactive Graphics | B5: =Results1!A4 -> Test0320 | C5: =Results1!D4 -> 0 | D5: =Results1!E4 -> 1 | E5: 0 | G5: =Results2!D4 -> 0 | H5: =Results2!E4 -> 1 | I5: 0 | K5: =Results3!D4 -> 0 | L5: =Results3!E4 -> 1 | M5: 0 | O5: =Results4!D4 -> 0 | P5: 1 | Q5: 0 | S5: 0 | T5: =Baseline!H4*Baseline!I4 -> 51.284 | U5: 0
A6: =Results1!C5 -> Interactive Graphics | B6: =Results1!A5 -> Test0410 | C6: =Results1!D5 -> 0 | D6: =Results1!E5 -> 1 | E6: 0 | G6: =Results2!D5 -> 0 | H6: =Results2!E5 -> 1 | I6: 0 | K6: =Results3!D5 -> 0 | L6: =Results3!E5 -> 1 | M6: 0 | O6: =Results4!D5 -> 0 | P6: 1 | Q6: 0 | S6: 0 | T6: =Baseline!H5*Baseline!I5 -> 18.989 | U6: 0
A7: =Results1!C6 -> Interactive Graphics | B7: =Results1!A6 -> Test0040 | C7: =Results1!D6 -> 0 | D7: =Results1!E6 -> 1 | E7: 0 | G7: =Results2!D6 -> 0 | H7: =Results2!E6 -> 1 | I7: 0 | K7: =Results3!D6 -> 0 | L7: =Results3!E6 -> 1 | M7: 0 | O7: =Results4!D6 -> 0 | P7: 1 | Q7: 0 | S7: 0 | T7: =Baseline!H6*Baseline!I6 -> 113.375 | U7: 0
A8: =Results1!C7 -> Interactive Graphics | B8: =Results1!A7 -> Test2040 | C8: =Results1!D7 -> 0 | D8: =Results1!E7 -> 1 | E8: 0 | G8: =Results2!D7 -> 0 | H8: =Results2!E7 -> 1 | I8: 0 | K8: =Results3!D7 -> 0 | L8: =Results3!E7 -> 1 | M8: 0 | O8: =Results4!D7 -> 0 | P8: 1 | Q8: 0 | S8: 0 | T8: =Baseline!H7*Baseline!I7 -> 30.75 | U8: 0
A9: =Results1!C8 -> Interactive Graphics | B9: =Results1!A8 -> Test0400 | C9: =Results1!D8 -> 0 | D9: =Results1!E8 -> 1 | E9: 0 | G9: =Results2!D8 -> 0 | H9: =Results2!E8 -> 1 | I9: 0 | K9: =Results3!D8 -> 0 | L9: =Results3!E8 -> 1 | M9: 0 | O9: =Results4!D8 -> 0 | P9: 1 | Q9: 0 | S9: 0 | T9: =Baseline!H8*Baseline!I8 -> 19.759 | U9: 0
A10: =Results1!C9 -> Interactive Graphics | B10: =Results1!A9 -> Test0622 | C10: =Results1!D9 -> 0 | D10: =Results1!E9 -> 1 | E10: 0 | G10: =Results2!D9 -> 0 | H10: =Results2!E9 -> 1 | I10: 0 | K10: =Results3!D9 -> 0 | L10: =Results3!E9 -> 1 | M10: 0 | O10: =Results4!D9 -> 0 | P10: 1 | Q10: 0 | S10: 0 | T10: =Baseline!H9*Baseline!I9 -> 13.343 | U10: 0
A11: =Results1!C10 -> Interactive Graphics | B11: =Results1!A10 -> Test0625 | C11: =Results1!D10 -> 0 | D11: =Results1!E10 -> 1 | E11: 0 | G11: =Results2!D10 -> 0 | H11: =Results2!E10 -> 1 | I11: 0 | K11: =Results3!D10 -> 0 | L11: =Results3!E10 -> 1 | M11: 0 | O11: =Results4!D10 -> 0 | P11: 1 | Q11: 0 | S11: 0 | T11: =Baseline!H10*Baseline!I10 -> 7.658 | U11: 0
A12: =Results1!C11 -> Interactive Graphics | B12: =Results1!A11 -> Test0340 | C12: =Results1!D11 -> 0 | D12: =Results1!E11 -> 1 | E12: 0 | G12: =Results2!D11 -> 0 | H12: =Results2!E11 -> 1 | I12: 0 | K12: =Results3!D11 -> 0 | L12: =Results3!E11 -> 1 | M12: 0 | O12: =Results4!D11 -> 0 | P12: 1 | Q12: 0 | S12: 0 | T12: =Baseline!H11*Baseline!I11 -> 24.608 | U12: 0
A13: =Results1!C12 -> Interactive Graphics | B13: =Results1!A12 -> Test0323 | C13: =Results1!D12 -> 0 | D13: =Results1!E12 -> 1 | E13: 0 | G13: =Results2!D12 -> 0 | H13: =Results2!E12 -> 1 | I13: 0 | K13: =Results3!D12 -> 0 | L13: =Results3!E12 -> 1 | M13: 0 | O13: =Results4!D12 -> 0 | P13: 1 | Q13: 0 | S13: 0 | T13: =Baseline!H12*Baseline!I12 -> 41.232 | U13: 0
A14: =Results1!C13 -> Interactive Graphics | B14: =Results1!A13 -> Test0390 | C14: =Results1!D13 -> 0 | D14: =Results1!E13 -> 1 | E14: 0 | G14: =Results2!D13 -> 0 | H14: =Results2!E13 -> 1 | I14: 0 | K14: =Results3!D13 -> 0 | L14: =Results3!E13 -> 1 | M14: 0 | O14: =Results4!D13 -> 0 | P14: 1 | Q14: 0 | S14: 0 | T14: =Baseline!H13*Baseline!I13 -> 115.634 | U14: 0
A15: =Results1!C14 -> Interactive Graphics | B15: =Results1!A14 -> Test0531 | C15: =Results1!D14 -> 0 | D15: =Results1!E14 -> 1 | E15: 0 | G15: =Results2!D14 -> 0 | H15: =Results2!E14 -> 1 | I15: 0 | K15: =Results3!D14 -> 0 | L15: =Results3!E14 -> 1 | M15: 0 | O15: =Results4!D14 -> 0 | P15: 1 | Q15: 0 | S15: 0 | T15: =Baseline!H14*Baseline!I14 -> 11.657 | U15: 0
A16: =Results1!C15 -> Interactive Graphics | B16: =Results1!A15 -> Test0140 | C16: =Results1!D15 -> 0 | D16: =Results1!E15 -> 1 | E16: 0 | G16: =Results2!D15 -> 0 | H16: =Results2!E15 -> 1 | I16: 0 | K16: =Results3!D15 -> 0 | L16: =Results3!E15 -> 1 | M16: 0 | O16: =Results4!D15 -> 0 | P16: 1 | Q16: 0 | S16: 0 | T16: =Baseline!H15*Baseline!I15 -> 110.474 | U16: 0
A17: =Results1!C16 -> Interactive Graphics | B17: =Results1!A16 -> Test0600 | C17: =Results1!D16 -> 0 | D17: =Results1!E16 -> 1 | E17: 0 | G17: =Results2!D16 -> 0 | H17: =Results2!E16 -> 1 | I17: 0 | K17: =Results3!D16 -> 0 | L17: =Results3!E16 -> 1 | M17: 0 | O17: =Results4!D16 -> 0 | P17: 1 | Q17: 0 | S17: 0 | T17: =Baseline!H16*Baseline!I16 -> 23.963 | U17: 0
A18: =Results1!C17 -> Interactive Graphics | B18: =Results1!A17 -> Test0601 | C18: =Results1!D17 -> 0 | D18: =Results1!E17 -> 1 | E18: 0 | G18: =Results2!D17 -> 0 | H18: =Results2!E17 -> 1 | I18: 0 | K18: =Results3!D17 -> 0 | L18: =Results3!E17 -> 1 | M18: 0 | O18: =Results4!D17 -> 0 | P18: 1 | Q18: 0 | S18: 0 | T18: =Baseline!H17*Baseline!I17 -> 32.362 | U18: 0
A19: =Results1!C18 -> Interactive Graphics | B19: =Results1!A18 -> Test0602 | C19: =Results1!D18 -> 0 | D19: =Results1!E18 -> 1 | E19: 0 | G19: =Results2!D18 -> 0 | H19: =Results2!E18 -> 1 | I19: 0 | K19: =Results3!D18 -> 0 | L19: =Results3!E18 -> 1 | M19: 0 | O19: =Results4!D18 -> 0 | P19: 1 | Q19: 0 | S19: 0 | T19: =Baseline!H18*Baseline!I18 -> 16.301 | U19: 0
A20: =Results1!C19 -> Interactive Graphics | B20: =Results1!A19 -> Test1510 | C20: =Results1!D19 -> 0 | D20: =Results1!E19 -> 1 | E20: 0 | G20: =Results2!D19 -> 0 | H20: =Results2!E19 -> 1 | I20: 0 | K20: =Results3!D19 -> 0 | L20: =Results3!E19 -> 1 | M20: 0 | O20: =Results4!D19 -> 0 | P20: 1 | Q20: 0 | S20: 0 | T20: =Baseline!H19*Baseline!I19 -> 94.032 | U20: 0
A21: =Results1!C20 -> Interactive Graphics | B21: =Results1!A20 -> Test0561 | C21: =Results1!D20 -> 0 | D21: =Results1!E20 -> 1 | E21: 0 | G21: =Results2!D20 -> 0 | H21: =Results2!E20 -> 1 | I21: 0 | K21: =Results3!D20 -> 0 | L21: =Results3!E20 -> 1 | M21: 0 | O21: =Results4!D20 -> 0 | P21: 1 | Q21: 0 | S21: 0 | T21: =Baseline!H20*Baseline!I20 -> 10.757 | U21: 0
A22: =Results1!C21 -> Interactive Graphics | B22: =Results1!A21 -> Test0562 | C22: =Results1!D21 -> 0 | D22: =Results1!E21 -> 1 | E22: 0 | G22: =Results2!D21 -> 0 | H22: =Results2!E21 -> 1 | I22: 0 | K22: =Results3!D21 -> 0 | L22: =Results3!E21 -> 1 | M22: 0 | O22: =Results4!D21 -> 0 | P22: 1 | Q22: 0 | S22: 0 | T22: =Baseline!H21*Baseline!I21 -> 15.41 | U22: 0 | W22: =GEOMEAN(U3:U22) ->  | X22: Interactive Graphics
A23: =Results1!C22 -> GPU Shaders | B23: =Results1!A22 -> Test2050 | C23: =Results1!D22 -> 0 | D23: =Results1!E22 -> 1 | E23: 0 | G23: =Results2!D22 -> 0 | H23: =Results2!E22 -> 1 | I23: 0 | K23: =Results3!D22 -> 0 | L23: =Results3!E22 -> 1 | M23: 0 | O23: =Results4!D22 -> 0 | P23: 1 | Q23: 0 | S23: 0 | T23: =Baseline!H22*Baseline!I22 -> 119.523 | U23: 0
A24: =Results1!C23 -> GPU Shaders | B24: =Results1!A23 -> Test2010 | C24: =Results1!D23 -> 0 | D24: =Results1!E23 -> 1 | E24: 0 | G24: =Results2!D23 -> 0 | H24: =Results2!E23 -> 1 | I24: 0 | K24: =Results3!D23 -> 0 | L24: =Results3!E23 -> 1 | M24: 0 | O24: =Results4!D23 -> 0 | P24: 1 | Q24: 0 | S24: 0 | T24: =Baseline!H23*Baseline!I23 -> 7.146 | U24: 0
A25: =Results1!C24 -> GPU Shaders | B25: =Results1!A24 -> Test2020 | C25: =Results1!D24 -> 0 | D25: =Results1!E24 -> 1 | E25: 0 | G25: =Results2!D24 -> 0 | H25: =Results2!E24 -> 1 | I25: 0 | K25: =Results3!D24 -> 0 | L25: =Results3!E24 -> 1 | M25: 0 | O25: =Results4!D24 -> 0 | P25: 1 | Q25: 0 | S25: 0 | T25: =Baseline!H24*Baseline!I24 -> 62.386 | U25: 0 | W25: =GEOMEAN(U23:U25) ->  | X25: GPU Shaders
A26: =Results1!C25 -> Large Model CPU | B26: =Results1!A25 -> Test0020 | C26: =Results1!D25 -> 0 | D26: =Results1!E25 -> 1 | E26: 0 | G26: =Results2!D25 -> 0 | H26: =Results2!E25 -> 1 | I26: 0 | K26: =Results3!D25 -> 0 | L26: =Results3!E25 -> 1 | M26: 0 | O26: =Results4!D25 -> 0 | P26: 1 | Q26: 0 | S26: 0 | T26: =Baseline!H25*Baseline!I25 -> 309.915 | U26: 0 | W26: =U26 -> 0 | X26: Large Model CPU
A27: =Results1!C26 -> Large Model GPU | B27: =Results1!A26 -> Test0030 | C27: =Results1!D26 -> 0 | D27: =Results1!E26 -> 1 | E27: 0 | G27: =Results2!D26 -> 0 | H27: =Results2!E26 -> 1 | I27: 0 | K27: =Results3!D26 -> 0 | L27: =Results3!E26 -> 1 | M27: 0 | O27: =Results4!D26 -> 0 | P27: 1 | Q27: 0 | S27: 0 | T27: =Baseline!H26*Baseline!I26 -> 667.213 | U27: 0 | W27: =U27 -> 0 | X27: Large Model GPU
A28: =Results1!C27 -> Modeling | B28: =Results1!A27 -> Test2000 | C28: =Results1!D27 -> 0 | D28: =Results1!E27 -> 1 | E28: 0 | G28: =Results2!D27 -> 0 | H28: =Results2!E27 -> 1 | I28: 0 | K28: =Results3!D27 -> 0 | L28: =Results3!E27 -> 1 | M28: 0 | O28: =Results4!D27 -> 0 | P28: 1 | Q28: 0 | S28: 0 | T28: =Baseline!H27*Baseline!I27 -> 7.24 | U28: 0
A29: =Results1!C28 -> Modeling | B29: =Results1!A28 -> Test0050 | C29: =Results1!D28 -> 0 | D29: =Results1!E28 -> 1 | E29: 0 | G29: =Results2!D28 -> 0 | H29: =Results2!E28 -> 1 | I29: 0 | K29: =Results3!D28 -> 0 | L29: =Results3!E28 -> 1 | M29: 0 | O29: =Results4!D28 -> 0 | P29: 1 | Q29: 0 | S29: 0 | T29: =Baseline!H28*Baseline!I28 -> 12.609 | U29: 0
A30: =Results1!C29 -> Modeling | B30: =Results1!A29 -> Test0070 | C30: =Results1!D29 -> 0 | D30: =Results1!E29 -> 1 | E30: 0 | G30: =Results2!D29 -> 0 | H30: =Results2!E29 -> 1 | I30: 0 | K30: =Results3!D29 -> 0 | L30: =Results3!E29 -> 1 | M30: 0 | O30: =Results4!D29 -> 0 | P30: 1 | Q30: 0 | S30: 0 | T30: =Baseline!H29*Baseline!I29 -> 8.594 | U30: 0
A31: =Results1!C30 -> Modeling | B31: =Results1!A30 -> Test0080 | C31: =Results1!D30 -> 0 | D31: =Results1!E30 -> 1 | E31: 0 | G31: =Results2!D30 -> 0 | H31: =Results2!E30 -> 1 | I31: 0 | K31: =Results3!D30 -> 0 | L31: =Results3!E30 -> 1 | M31: 0 | O31: =Results4!D30 -> 0 | P31: 1 | Q31: 0 | S31: 0 | T31: =Baseline!H30*Baseline!I30 -> 16.208 | U31: 0
A32: =Results1!C31 -> Modeling | B32: =Results1!A31 -> Test0090 | C32: =Results1!D31 -> 0 | D32: =Results1!E31 -> 1 | E32: 0 | G32: =Results2!D31 -> 0 | H32: =Results2!E31 -> 1 | I32: 0 | K32: =Results3!D31 -> 0 | L32: =Results3!E31 -> 1 | M32: 0 | O32: =Results4!D31 -> 0 | P32: 1 | Q32: 0 | S32: 0 | T32: =Baseline!H31*Baseline!I31 -> 19.937 | U32: 0
A33: =Results1!C32 -> Modeling | B33: =Results1!A32 -> Test0100 | C33: =Results1!D32 -> 0 | D33: =Results1!E32 -> 1 | E33: 0 | G33: =Results2!D32 -> 0 | H33: =Results2!E32 -> 1 | I33: 0 | K33: =Results3!D32 -> 0 | L33: =Results3!E32 -> 1 | M33: 0 | O33: =Results4!D32 -> 0 | P33: 1 | Q33: 0 | S33: 0 | T33: =Baseline!H32*Baseline!I32 -> 15.803 | U33: 0
A34: =Results1!C33 -> Modeling | B34: =Results1!A33 -> Test0110 | C34: =Results1!D33 -> 0 | D34: =Results1!E33 -> 1 | E34: 0 | G34: =Results2!D33 -> 0 | H34: =Results2!E33 -> 1 | I34: 0 | K34: =Results3!D33 -> 0 | L34: =Results3!E33 -> 1 | M34: 0 | O34: =Results4!D33 -> 0 | P34: 1 | Q34: 0 | S34: 0 | T34: =Baseline!H33*Baseline!I33 -> 9.234 | U34: 0
A35: =Results1!C34 -> Modeling | B35: =Results1!A34 -> Test0041 | C35: =Results1!D34 -> 0 | D35: =Results1!E34 -> 1 | E35: 0 | G35: =Results2!D34 -> 0 | H35: =Results2!E34 -> 1 | I35: 0 | K35: =Results3!D34 -> 0 | L35: =Results3!E34 -> 1 | M35: 0 | O35: =Results4!D34 -> 0 | P35: 1 | Q35: 0 | S35: 0 | T35: =Baseline!H34*Baseline!I34 -> 35.089 | U35: 0
A36: =Results1!C35 -> Modeling | B36: =Results1!A35 -> Test0042 | C36: =Results1!D35 -> 0 | D36: =Results1!E35 -> 1 | E36: 0 | G36: =Results2!D35 -> 0 | H36: =Results2!E35 -> 1 | I36: 0 | K36: =Results3!D35 -> 0 | L36: =Results3!E35 -> 1 | M36: 0 | O36: =Results4!D35 -> 0 | P36: 1 | Q36: 0 | S36: 0 | T36: =Baseline!H35*Baseline!I35 -> 44.01 | U36: 0
A37: =Results1!C36 -> Modeling | B37: =Results1!A36 -> Test0043 | C37: =Results1!D36 -> 0 | D37: =Results1!E36 -> 1 | E37: 0 | G37: =Results2!D36 -> 0 | H37: =Results2!E36 -> 1 | I37: 0 | K37: =Results3!D36 -> 0 | L37: =Results3!E36 -> 1 | M37: 0 | O37: =Results4!D36 -> 0 | P37: 1 | Q37: 0 | S37: 0 | T37: =Baseline!H36*Baseline!I36 -> 46.289 | U37: 0
A38: =Results1!C37 -> Modeling | B38: =Results1!A37 -> Test0370 | C38: =Results1!D37 -> 0 | D38: =Results1!E37 -> 1 | E38: 0 | G38: =Results2!D37 -> 0 | H38: =Results2!E37 -> 1 | I38: 0 | K38: =Results3!D37 -> 0 | L38: =Results3!E37 -> 1 | M38: 0 | O38: =Results4!D37 -> 0 | P38: 1 | Q38: 0 | S38: 0 | T38: =Baseline!H37*Baseline!I37 -> 19.498 | U38: 0
A39: =Results1!C38 -> Modeling | B39: =Results1!A38 -> Test0171 | C39: =Results1!D38 -> 0 | D39: =Results1!E38 -> 1 | E39: 0 | G39: =Results2!D38 -> 0 | H39: =Results2!E38 -> 1 | I39: 0 | K39: =Results3!D38 -> 0 | L39: =Results3!E38 -> 1 | M39: 0 | O39: =Results4!D38 -> 0 | P39: 1 | Q39: 0 | S39: 0 | T39: =Baseline!H38*Baseline!I38 -> 53.862 | U39: 0
A40: =Results1!C39 -> Modeling | B40: =Results1!A39 -> Test0210 | C40: =Results1!D39 -> 0 | D40: =Results1!E39 -> 1 | E40: 0 | G40: =Results2!D39 -> 0 | H40: =Results2!E39 -> 1 | I40: 0 | K40: =Results3!D39 -> 0 | L40: =Results3!E39 -> 1 | M40: 0 | O40: =Results4!D39 -> 0 | P40: 1 | Q40: 0 | S40: 0 | T40: =Baseline!H39*Baseline!I39 -> 34.93 | U40: 0
A41: =Results1!C40 -> Modeling | B41: =Results1!A40 -> Test0121 | C41: =Results1!D40 -> 0 | D41: =Results1!E40 -> 1 | E41: 0 | G41: =Results2!D40 -> 0 | H41: =Results2!E40 -> 1 | I41: 0 | K41: =Results3!D40 -> 0 | L41: =Results3!E40 -> 1 | M41: 0 | O41: =Results4!D40 -> 0 | P41: 1 | Q41: 0 | S41: 0 | T41: =Baseline!H40*Baseline!I40 -> 16.011 | U41: 0
A42: =Results1!C41 -> Modeling | B42: =Results1!A41 -> Test0130 | C42: =Results1!D41 -> 0 | D42: =Results1!E41 -> 1 | E42: 0 | G42: =Results2!D41 -> 0 | H42: =Results2!E41 -> 1 | I42: 0 | K42: =Results3!D41 -> 0 | L42: =Results3!E41 -> 1 | M42: 0 | O42: =Results4!D41 -> 0 | P42: 1 | Q42: 0 | S42: 0 | T42: =Baseline!H41*Baseline!I41 -> 26.831 | U42: 0 | W42: =GEOMEAN(U28:U42) ->  | X42: Modeling
A43: =Results1!C42 -> CPU Computing | B43: =Results1!A42 -> Test0125 | C43: =Results1!D42 -> 0 | D43: =Results1!E42 -> 1 | E43: 0 | G43: =Results2!D42 -> 0 | H43: =Results2!E42 -> 1 | I43: 0 | K43: =Results3!D42 -> 0 | L43: =Results3!E42 -> 1 | M43: 0 | O43: =Results4!D42 -> 0 | P43: 1 | Q43: 0 | S43: 0 | T43: =Baseline!H42*Baseline!I42 -> 25.727 | U43: 0
A44: =Results1!C43 -> CPU Computing | B44: =Results1!A43 -> Test1000 | C44: =Results1!D43 -> 0 | D44: =Results1!E43 -> 1 | E44: 0 | G44: =Results2!D43 -> 0 | H44: =Results2!E43 -> 1 | I44: 0 | K44: =Results3!D43 -> 0 | L44: =Results3!E43 -> 1 | M44: 0 | O44: =Results4!D43 -> 0 | P44: 1 | Q44: 0 | S44: 0 | T44: =Baseline!H43*Baseline!I43 -> 7.319 | U44: 0
A45: =Results1!C44 -> CPU Computing | B45: =Results1!A44 -> Test1500 | C45: =Results1!D44 -> 0 | D45: =Results1!E44 -> 1 | E45: 0 | G45: =Results2!D44 -> 0 | H45: =Results2!E44 -> 1 | I45: 0 | K45: =Results3!D44 -> 0 | L45: =Results3!E44 -> 1 | M45: 0 | O45: =Results4!D44 -> 0 | P45: 1 | Q45: 0 | S45: 0 | T45: =Baseline!H44*Baseline!I44 -> 11.354 | U45: 0 | W45: =GEOMEAN(U43:U45) ->  | X45: CPU Computing
A46: =Results1!C45 -> GPU Rendering | B46: =Results1!A45 -> Test1070 | C46: =Results1!D45 -> 0 | D46: =Results1!E45 -> 1 | E46: 0 | G46: =Results2!D45 -> 0 | H46: =Results2!E45 -> 1 | I46: 0 | K46: =Results3!D45 -> 0 | L46: =Results3!E45 -> 1 | M46: 0 | O46: =Results4!D45 -> 0 | P46: 1 | Q46: 0 | S46: 0 | T46: =Baseline!H45*Baseline!I45 -> 4.76 | U46: 0
A47: =Results1!C46 -> GPU Rendering | B47: =Results1!A46 -> Test1075 | C47: =Results1!D46 -> 0 | D47: =Results1!E46 -> 1 | E47: 0 | G47: =Results2!D46 -> 0 | H47: =Results2!E46 -> 1 | I47: 0 | K47: =Results3!D46 -> 0 | L47: =Results3!E46 -> 1 | M47: 0 | O47: =Results4!D46 -> 0 | P47: 1 | Q47: 0 | S47: 0 | T47: =Baseline!H46*Baseline!I46 -> 45.328 | U47: 0
A48: =Results1!C47 -> GPU Rendering | B48: =Results1!A47 -> Test1080 | C48: =Results1!D47 -> 0 | D48: =Results1!E47 -> 1 | E48: 0 | G48: =Results2!D47 -> 0 | H48: =Results2!E47 -> 1 | I48: 0 | K48: =Results3!D47 -> 0 | L48: =Results3!E47 -> 1 | M48: 0 | O48: =Results4!D47 -> 0 | P48: 1 | Q48: 0 | S48: 0 | T48: =Baseline!H47*Baseline!I47 -> 125.605 | U48: 0
A49: =Results1!C48 -> GPU Rendering | B49: =Results1!A48 -> Test1081 | C49: =Results1!D48 -> 0 | D49: =Results1!E48 -> 1 | E49: 0 | G49: =Results2!D48 -> 0 | H49: =Results2!E48 -> 1 | I49: 0 | K49: =Results3!D48 -> 0 | L49: =Results3!E48 -> 1 | M49: 0 | O49: =Results4!D48 -> 0 | P49: 1 | Q49: 0 | S49: 0 | T49: =Baseline!H48*Baseline!I48 -> 52.088 | U49: 0
A50: =Results1!C49 -> GPU Rendering | B50: =Results1!A49 -> Test1090 | C50: =Results1!D49 -> 0 | D50: =Results1!E49 -> 1 | E50: 0 | G50: =Results2!D49 -> 0 | H50: =Results2!E49 -> 1 | I50: 0 | K50: =Results3!D49 -> 0 | L50: =Results3!E49 -> 1 | M50: 0 | O50: =Results4!D49 -> 0 | P50: 1 | Q50: 0 | S50: 0 | T50: =Baseline!H49*Baseline!I49 -> 46.826 | U50: 0
A51: =Results1!C50 -> GPU Rendering | B51: =Results1!A50 -> Test1100 | C51: =Results1!D50 -> 0 | D51: =Results1!E50 -> 1 | E51: 0 | G51: =Results2!D50 -> 0 | H51: =Results2!E50 -> 1 | I51: 0 | K51: =Results3!D50 -> 0 | L51: =Results3!E50 -> 1 | M51: 0 | O51: =Results4!D50 -> 0 | P51: 1 | Q51: 0 | S51: 0 | T51: =Baseline!H50*Baseline!I50 -> 18.478 | U51: 0
A52: =Results1!C51 -> GPU Rendering | B52: =Results1!A51 -> Test1105 | C52: =Results1!D51 -> 0 | D52: =Results1!E51 -> 1 | E52: 0 | G52: =Results2!D51 -> 0 | H52: =Results2!E51 -> 1 | I52: 0 | K52: =Results3!D51 -> 0 | L52: =Results3!E51 -> 1 | M52: 0 | O52: =Results4!D51 -> 0 | P52: 1 | Q52: 0 | S52: 0 | T52: =Baseline!H51*Baseline!I51 -> 156.75 | U52: 0
A53: =Results1!C52 -> GPU Rendering | B53: =Results1!A52 -> Test1110 | C53: =Results1!D52 -> 0 | D53: =Results1!E52 -> 1 | E53: 0 | G53: =Results2!D52 -> 0 | H53: =Results2!E52 -> 1 | I53: 0 | K53: =Results3!D52 -> 0 | L53: =Results3!E52 -> 1 | M53: 0 | O53: =Results4!D52 -> 0 | P53: 1 | Q53: 0 | S53: 0 | T53: =Baseline!H52*Baseline!I52 -> 29.871 | U53: 0
A54: =Results1!C53 -> GPU Rendering | B54: =Results1!A53 -> Test1120 | C54: =Results1!D53 -> 0 | D54: =Results1!E53 -> 1 | E54: 0 | G54: =Results2!D53 -> 0 | H54: =Results2!E53 -> 1 | I54: 0 | K54: =Results3!D53 -> 0 | L54: =Results3!E53 -> 1 | M54: 0 | O54: =Results4!D53 -> 0 | P54: 1 | Q54: 0 | S54: 0 | T54: =Baseline!H53*Baseline!I53 -> 155.712 | U54: 0 | W54: =GEOMEAN(U46:U55) ->  | X54: GPU Rendering
A55: =Results1!C54 -> GPU Rendering | B55: =Results1!A54 -> Test1520 | C55: =Results1!D54 -> 0 | D55: =Results1!E54 -> 1 | E55: 0 | G55: =Results2!D54 -> 0 | H55: =Results2!E54 -> 1 | I55: 0 | K55: =Results3!D54 -> 0 | L55: =Results3!E54 -> 1 | M55: 0 | O55: =Results4!D54 -> 0 | P55: 1 | Q55: 0 | S55: 0 | T55: =Baseline!H54*Baseline!I54 -> 75.301 | U55: 0
A56: =Results1!C55 -> CPU Rendering | B56: =Results1!A55 -> Test1085 | C56: =Results1!D55 -> 0 | D56: =Results1!E55 -> 1 | E56: 0 | G56: =Results2!D55 -> 0 | H56: =Results2!E55 -> 1 | I56: 0 | K56: =Results3!D55 -> 0 | L56: =Results3!E55 -> 1 | M56: 0 | O56: =Results4!D55 -> 0 | P56: 1 | Q56: 0 | S56: 0 | T56: =Baseline!H55*Baseline!I55 -> 116.107 | U56: 0
A57: =Results1!C56 -> CPU Rendering | B57: =Results1!A56 -> Test1095 | C57: =Results1!D56 -> 0 | D57: =Results1!E56 -> 1 | E57: 0 | G57: =Results2!D56 -> 0 | H57: =Results2!E56 -> 1 | I57: 0 | K57: =Results3!D56 -> 0 | L57: =Results3!E56 -> 1 | M57: 0 | O57: =Results4!D56 -> 0 | P57: 1 | Q57: 0 | S57: 0 | T57: =Baseline!H56*Baseline!I56 -> 78.486 | U57: 0
A58: =Results1!C57 -> CPU Rendering | B58: =Results1!A57 -> Test1115 | C58: =Results1!D57 -> 0 | D58: =Results1!E57 -> 1 | E58: 0 | G58: =Results2!D57 -> 0 | H58: =Results2!E57 -> 1 | I58: 0 | K58: =Results3!D57 -> 0 | L58: =Results3!E57 -> 1 | M58: 0 | O58: =Results4!D57 -> 0 | P58: 1 | Q58: 0 | S58: 0 | T58: =Baseline!H57*Baseline!I57 -> 30.95 | U58: 0
A59: =Results1!C58 -> CPU Rendering | B59: =Results1!A58 -> Test1040 | C59: =Results1!D58 -> 0 | D59: =Results1!E58 -> 1 | E59: 0 | G59: =Results2!D58 -> 0 | H59: =Results2!E58 -> 1 | I59: 0 | K59: =Results3!D58 -> 0 | L59: =Results3!E58 -> 1 | M59: 0 | O59: =Results4!D58 -> 0 | P59: 1 | Q59: 0 | S59: 0 | T59: =Baseline!H58*Baseline!I58 -> 15.193 | U59: 0
A60: =Results1!C59 -> CPU Rendering | B60: =Results1!A59 -> Test1060 | C60: =Results1!D59 -> 0 | D60: =Results1!E59 -> 1 | E60: 0 | G60: =Results2!D59 -> 0 | H60: =Results2!E59 -> 1 | I60: 0 | K60: =Results3!D59 -> 0 | L60: =Results3!E59 -> 1 | M60: 0 | O60: =Results4!D59 -> 0 | P60: 1 | Q60: 0 | S60: 0 | T60: =Baseline!H59*Baseline!I59 -> 13.894 | U60: 0 | W60: =GEOMEAN(U56:U60) ->  | X60: CPU Rendering
